[Event "Early-Titled-Tuesday-Blitz-September-12-2023"]
[Site "Chess.com"]
[Date "2023.09.12"]
[Round "6"]
[White "Raskolnikov6"]
[Black "LeoLV10"]
[Result "1-0"]
[WhiteElo "2282"]
[BlackElo "2483"]
[TimeControl "180+1"]
[EndTime "9:06:15 PDT"]
[Termination "Raskolnikov6 won by resignation"]

1. d4 {[%clk 0:02:29.8]} 1... Nf6 {[%clk 0:02:59.4]} 2. c4 {[%clk 0:02:29.4]}
2... e6 {[%clk 0:02:59.7]} 3. Nc3 {[%clk 0:02:29.2]} 3... Bb4 {[%clk 0:02:59.2]}
4. e3 {[%clk 0:02:28.9]} 4... b6 {[%clk 0:02:55.6]} 5. Bd3 {[%clk 0:02:28.9]}
5... Bb7 {[%clk 0:02:54.9]} 6. f3 {[%clk 0:02:29.2]} 6... d5 {[%clk 0:02:50.5]}
7. Ne2 {[%clk 0:02:27.8]} 7... O-O {[%clk 0:02:49.6]} 8. O-O {[%clk 0:02:27.2]}
8... Nbd7 {[%clk 0:02:49.7]} 9. Qc2 {[%clk 0:02:26.9]} 9... Re8 {[%clk 0:02:49]}
10. a3 {[%clk 0:02:26.7]} 10... Bd6 {[%clk 0:02:46.1]} 11. e4 {[%clk 0:02:20.9]}
11... dxc4 {[%clk 0:02:41.8]} 12. Bxc4 {[%clk 0:02:19.8]} 12... e5 {[%clk
0:02:42.5]} 13. Be3 {[%clk 0:02:18.3]} 13... exd4 {[%clk 0:02:41.2]} 14. Nxd4
{[%clk 0:02:17]} 14... a6 {[%clk 0:02:39.9]} 15. Rad1 {[%clk 0:02:14.5]} 15...
Qc8 {[%clk 0:02:22.6]} 16. Nf5 {[%clk 0:02:08.8]} 16... Bf8 {[%clk 0:02:18.2]}
17. Bg5 {[%clk 0:01:32.3]} 17... Ne5 {[%clk 0:01:38.3]} 18. Ba2 {[%clk
0:01:22.7]} 18... Ng6 {[%clk 0:01:14.5]} 19. Bxf6 {[%clk 0:01:08.2]} 19... gxf6
{[%clk 0:01:14.6]} 20. Nd5 {[%clk 0:01:06]} 20... Re6 {[%clk 0:00:35.7]} 21.
Qxc7 {[%clk 0:00:54.8]} 21... Rc6 {[%clk 0:00:34.9]} 22. Qxc8 {[%clk 0:00:51.8]}
22... Raxc8 {[%clk 0:00:35.8]} 23. h4 {[%clk 0:00:49]} 23... h5 {[%clk
0:00:34.1]} 24. Rd2 {[%clk 0:00:45.9]} 24... Ne5 {[%clk 0:00:25.5]} 25. Nde7+
{[%clk 0:00:43.4]} 25... Bxe7 {[%clk 0:00:20.7]} 26. Nxe7+ {[%clk 0:00:44]}
26... Kf8 {[%clk 0:00:21.5]} 27. Nxc8 {[%clk 0:00:43.3]} 27... Rxc8 {[%clk
0:00:20.4]} 28. Bd5 {[%clk 0:00:42.1]} 28... Bxd5 {[%clk 0:00:17.6]} 29. Rxd5
{[%clk 0:00:41.7]} 29... Ke7 {[%clk 0:00:17.4]} 30. Rfd1 {[%clk 0:00:40.6]}
30... Rc2 {[%clk 0:00:17.5]} 31. R1d2 {[%clk 0:00:40.5]} 31... Rc1+ {[%clk
0:00:17.3]} 32. Kh2 {[%clk 0:00:41.2]} 32... Rc6 {[%clk 0:00:15]} 33. Kg3 {[%clk
0:00:36.6]} 33... Ke6 {[%clk 0:00:11.1]} 34. Rd8 {[%clk 0:00:34.4]} 34... Ke7
{[%clk 0:00:10.5]} 35. Rh8 {[%clk 0:00:31.9]} 35... Nc4 {[%clk 0:00:08.9]} 36.
Rc2 {[%clk 0:00:27.7]} 36... b5 {[%clk 0:00:08.3]} 37. b3 {[%clk 0:00:25.5]}
37... Na5 {[%clk 0:00:08.3]} 38. Rxc6 {[%clk 0:00:25.5]} 38... Nxc6 {[%clk
0:00:09.2]} 39. Rxh5 {[%clk 0:00:25.3]} 39... Nd4 {[%clk 0:00:09.9]} 40. a4
{[%clk 0:00:22.6]} 40... Nxb3 {[%clk 0:00:08.6]} 41. axb5 {[%clk 0:00:22.8]}
41... a5 {[%clk 0:00:09.2]} 42. b6 {[%clk 0:00:22.5]} 42... Kd6 {[%clk
0:00:09.1]} 43. Rb5 {[%clk 0:00:21.8]} 43... Nc5 {[%clk 0:00:07.2]} 44. b7
{[%clk 0:00:22.1]} 44... Nxb7 {[%clk 0:00:06]} 45. Rxb7 {[%clk 0:00:22.6]} 1-0

[Event "Early-Titled-Tuesday-Blitz-September-12-2023"]
[Site "Chess.com"]
[Date "2023.09.12"]
[Round "6"]
[White "Viacheslav92"]
[Black "Apocalyps999"]
[Result "1-0"]
[WhiteElo "2506"]
[BlackElo "2319"]
[TimeControl "180+1"]
[EndTime "9:06:15 PDT"]
[Termination "Viacheslav92 won by resignation"]

1. e4 {[%clk 0:03:00.9]} 1... e5 {[%clk 0:02:56.8]} 2. Nf3 {[%clk 0:03:01.1]}
2... Nc6 {[%clk 0:02:54.6]} 3. Bb5 {[%clk 0:03:01.7]} 3... a6 {[%clk 0:02:53.8]}
4. Ba4 {[%clk 0:03:01]} 4... Nf6 {[%clk 0:02:53.2]} 5. O-O {[%clk 0:03:00.8]}
5... Be7 {[%clk 0:02:52.8]} 6. Re1 {[%clk 0:02:59]} 6... b5 {[%clk 0:02:47.8]}
7. Bb3 {[%clk 0:02:59.5]} 7... O-O {[%clk 0:02:48.7]} 8. c3 {[%clk 0:02:57.6]}
8... d5 {[%clk 0:02:47.8]} 9. exd5 {[%clk 0:02:57.2]} 9... Nxd5 {[%clk
0:02:48.7]} 10. Nxe5 {[%clk 0:02:56.4]} 10... Nxe5 {[%clk 0:02:49.6]} 11. Rxe5
{[%clk 0:02:56.7]} 11... c6 {[%clk 0:02:49.7]} 12. d4 {[%clk 0:02:55.4]} 12...
Bd6 {[%clk 0:02:45.9]} 13. Re1 {[%clk 0:02:55.9]} 13... Qh4 {[%clk 0:02:43.3]}
14. g3 {[%clk 0:02:56]} 14... Qh3 {[%clk 0:02:40.3]} 15. Qf3 {[%clk 0:02:28.5]}
15... Bg4 {[%clk 0:02:35.5]} 16. Qg2 {[%clk 0:02:28.3]} 16... Qh5 {[%clk
0:02:35.2]} 17. Nd2 {[%clk 0:02:24.3]} 17... Rae8 {[%clk 0:02:28.8]} 18. Rf1
{[%clk 0:02:00.5]} 18... Bh3 {[%clk 0:02:21.4]} 19. Qf3 {[%clk 0:01:59.4]} 19...
Qxf3 {[%clk 0:02:17.2]} 20. Nxf3 {[%clk 0:02:00.3]} 20... Bxf1 {[%clk
0:02:15.6]} 21. Kxf1 {[%clk 0:02:01.2]} 21... f6 {[%clk 0:02:14.4]} 22. a4
{[%clk 0:02:00.8]} 22... Ra8 {[%clk 0:02:00.5]} 23. Ke2 {[%clk 0:01:53.2]} 23...
Rfe8+ {[%clk 0:01:55.6]} 24. Kd3 {[%clk 0:01:52.7]} 24... g5 {[%clk 0:01:55]}
25. Be3 {[%clk 0:01:41.1]} 25... Kg7 {[%clk 0:01:40.8]} 26. Nd2 {[%clk
0:01:37.5]} 26... Nxe3 {[%clk 0:01:14.7]} 27. fxe3 {[%clk 0:01:38.4]} 27... f5
{[%clk 0:01:15.2]} 28. e4 {[%clk 0:01:31.1]} 28... fxe4+ {[%clk 0:01:13.5]} 29.
Nxe4 {[%clk 0:01:32]} 29... Be7 {[%clk 0:01:12.8]} 30. Be6 {[%clk 0:01:22.9]}
30... Red8 {[%clk 0:00:59.2]} 31. Rf1 {[%clk 0:01:08.7]} 31... Rf8 {[%clk
0:00:53.8]} 32. Rxf8 {[%clk 0:01:01]} 32... Rxf8 {[%clk 0:00:45.8]} 33. Bd7
{[%clk 0:01:01.9]} 33... bxa4 {[%clk 0:00:41.6]} 34. Bxc6 {[%clk 0:01:01]} 34...
a3 {[%clk 0:00:40.5]} 35. bxa3 {[%clk 0:00:59.6]} 35... Bxa3 {[%clk 0:00:41.4]}
36. c4 {[%clk 0:00:58.1]} 36... Be7 {[%clk 0:00:39.6]} 37. c5 {[%clk 0:00:57.8]}
37... a5 {[%clk 0:00:28]} 38. d5 {[%clk 0:00:57.6]} 38... Rc8 {[%clk 0:00:23.2]}
39. Kc4 {[%clk 0:00:49.7]} 39... Rb8 {[%clk 0:00:22.8]} 40. d6 {[%clk
0:00:47.9]} 40... Bf6 {[%clk 0:00:19.7]} 41. Kd5 {[%clk 0:00:45.5]} 41... Kf7
{[%clk 0:00:18.3]} 42. Ba4 {[%clk 0:00:41.6]} 42... Rb4 {[%clk 0:00:17.7]} 43.
Nxf6 {[%clk 0:00:39.8]} 43... Kxf6 {[%clk 0:00:16.6]} 44. c6 {[%clk 0:00:40.4]}
44... Rxa4 {[%clk 0:00:16.5]} 45. c7 {[%clk 0:00:40.5]} 45... Ra1 {[%clk
0:00:15.8]} 46. c8=Q {[%clk 0:00:39.9]} 46... Rd1+ {[%clk 0:00:16.7]} 47. Ke4
{[%clk 0:00:37.3]} 47... Re1+ {[%clk 0:00:16.5]} 48. Kf3 {[%clk 0:00:36.4]}
48... g4+ {[%clk 0:00:15.3]} 49. Kf2 {[%clk 0:00:36.1]} 1-0

[Event "Early-Titled-Tuesday-Blitz-September-12-2023"]
[Site "Chess.com"]
[Date "2023.09.12"]
[Round "6"]
[White "UmarovSabir"]
[Black "lrestevez"]
[Result "0-1"]
[WhiteElo "2282"]
[BlackElo "2145"]
[TimeControl "180+1"]
[EndTime "9:06:15 PDT"]
[Termination "lrestevez won on time"]

1. e4 {[%clk 0:03:00]} 1... e5 {[%clk 0:02:19.6]} 2. Nf3 {[%clk 0:02:56.3]} 2...
Nc6 {[%clk 0:02:20]} 3. Bc4 {[%clk 0:02:56.7]} 3... Nf6 {[%clk 0:02:19.6]} 4. d3
{[%clk 0:02:56.6]} 4... Be7 {[%clk 0:02:20]} 5. Nc3 {[%clk 0:02:55.2]} 5... O-O
{[%clk 0:02:20.5]} 6. h3 {[%clk 0:02:55.2]} 6... d6 {[%clk 0:02:21.1]} 7. Be3
{[%clk 0:02:55.2]} 7... h6 {[%clk 0:02:21.4]} 8. Qd2 {[%clk 0:02:54.1]} 8... Be6
{[%clk 0:02:22]} 9. O-O-O {[%clk 0:02:52.6]} 9... Bxc4 {[%clk 0:02:17.9]} 10.
dxc4 {[%clk 0:02:52.3]} 10... Nh7 {[%clk 0:02:17.1]} 11. g4 {[%clk 0:02:51.4]}
11... Nb8 {[%clk 0:02:13.9]} 12. h4 {[%clk 0:02:51.3]} 12... c6 {[%clk
0:02:10.7]} 13. g5 {[%clk 0:02:43.7]} 13... h5 {[%clk 0:02:09.5]} 14. g6 {[%clk
0:02:39.5]} 14... fxg6 {[%clk 0:02:09.1]} 15. Rdg1 {[%clk 0:02:40.1]} 15... Rxf3
{[%clk 0:02:07.9]} 16. Rxg6 {[%clk 0:02:37.5]} 16... Qe8 {[%clk 0:02:03.6]} 17.
Rhg1 {[%clk 0:02:37.1]} 17... Rf7 {[%clk 0:02:01.6]} 18. Ne2 {[%clk 0:02:23]}
18... Nd7 {[%clk 0:02:01.4]} 19. Ng3 {[%clk 0:02:22.7]} 19... Ndf8 {[%clk
0:02:01.3]} 20. Nf5 {[%clk 0:02:08.5]} 20... Nxg6 {[%clk 0:01:57.3]} 21. Rxg6
{[%clk 0:02:09.4]} 21... Kh8 {[%clk 0:01:46.7]} 22. Qe2 {[%clk 0:02:03.3]} 22...
Nf6 {[%clk 0:01:39.8]} 23. Bg5 {[%clk 0:01:51]} 23... Kh7 {[%clk 0:01:20]} 24.
Rxf6 {[%clk 0:01:26.9]} 24... Bxf6 {[%clk 0:01:14.7]} 25. Qxh5+ {[%clk
0:01:27.2]} 25... Kg8 {[%clk 0:01:14.9]} 26. Nxd6 {[%clk 0:01:26.8]} 26... Bxg5+
{[%clk 0:01:10]} 27. hxg5 {[%clk 0:01:22.9]} 27... Qe6 {[%clk 0:01:03.2]} 28. g6
{[%clk 0:01:16.4]} 28... Rxf2 {[%clk 0:00:31.7]} 29. Nf5 {[%clk 0:00:45]} 29...
Rf1+ {[%clk 0:00:23.6]} 30. Kd2 {[%clk 0:00:44.7]} 30... Rd8+ {[%clk 0:00:20.2]}
31. Kc3 {[%clk 0:00:42.2]} 31... Rxf5 {[%clk 0:00:20.3]} 32. exf5 {[%clk
0:00:36.9]} 32... Qf6 {[%clk 0:00:20.5]} 33. b4 {[%clk 0:00:27]} 33... Kf8
{[%clk 0:00:20.1]} 34. Kb3 {[%clk 0:00:25.4]} 34... e4 {[%clk 0:00:19.9]} 35. a4
{[%clk 0:00:20.6]} 35... e3 {[%clk 0:00:20.2]} 36. Qf3 {[%clk 0:00:16.6]} 36...
Re8 {[%clk 0:00:20.1]} 37. Qe2 {[%clk 0:00:15.9]} 37... Qxf5 {[%clk 0:00:19.2]}
0-1

[Event "Early-Titled-Tuesday-Blitz-September-12-2023"]
[Site "Chess.com"]
[Date "2023.09.12"]
[Round "6"]
[White "jup1978"]
[Black "Korchmar_Vasiliy"]
[Result "0-1"]
[WhiteElo "2491"]
[BlackElo "2713"]
[TimeControl "180+1"]
[EndTime "9:06:18 PDT"]
[Termination "Korchmar_Vasiliy won on time"]

1. d4 {[%clk 0:03:00.9]} 1... d5 {[%clk 0:02:59.4]} 2. c4 {[%clk 0:03:00.5]}
2... c6 {[%clk 0:02:59.3]} 3. Nf3 {[%clk 0:03:00.2]} 3... Nf6 {[%clk 0:02:59.4]}
4. cxd5 {[%clk 0:03:00.4]} 4... cxd5 {[%clk 0:03:00.3]} 5. Nc3 {[%clk
0:03:00.7]} 5... Nc6 {[%clk 0:03:00.7]} 6. Bf4 {[%clk 0:03:01]} 6... Nh5 {[%clk
0:03:01]} 7. Bd2 {[%clk 0:02:59.1]} 7... g6 {[%clk 0:03:01.4]} 8. Qb3 {[%clk
0:02:56.4]} 8... Nf6 {[%clk 0:02:58.1]} 9. e3 {[%clk 0:02:56]} 9... Bg7 {[%clk
0:02:58.2]} 10. Be2 {[%clk 0:02:47.7]} 10... O-O {[%clk 0:02:58]} 11. O-O {[%clk
0:02:48.3]} 11... a6 {[%clk 0:02:54.6]} 12. a4 {[%clk 0:02:44.5]} 12... Ne4
{[%clk 0:02:34.2]} 13. Rfc1 {[%clk 0:02:35.9]} 13... Bg4 {[%clk 0:02:26.1]} 14.
Be1 {[%clk 0:02:29]} 14... Na5 {[%clk 0:02:09.9]} 15. Qa2 {[%clk 0:02:17.7]}
15... Be6 {[%clk 0:01:51.5]} 16. Nd2 {[%clk 0:01:51.7]} 16... Nd6 {[%clk
0:01:33.4]} 17. Nb3 {[%clk 0:01:15.4]} 17... Nxb3 {[%clk 0:01:24.3]} 18. Qxb3
{[%clk 0:01:16.3]} 18... h5 {[%clk 0:00:51.5]} 19. Bf3 {[%clk 0:01:01.7]} 19...
Ne4 {[%clk 0:00:50]} 20. Be2 {[%clk 0:00:53.7]} 20... Rb8 {[%clk 0:00:30]} 21.
Nxe4 {[%clk 0:00:52.5]} 21... dxe4 {[%clk 0:00:30.9]} 22. Bc4 {[%clk 0:00:52.9]}
22... Bxc4 {[%clk 0:00:31]} 23. Rxc4 {[%clk 0:00:46.9]} 23... b5 {[%clk
0:00:30.5]} 24. axb5 {[%clk 0:00:45.4]} 24... Rxb5 {[%clk 0:00:31.4]} 25. Rb4
{[%clk 0:00:42.6]} 25... Rg5 {[%clk 0:00:30.5]} 26. Rxa6 {[%clk 0:00:29]} 26...
Qc8 {[%clk 0:00:29.5]} 27. h4 {[%clk 0:00:16]} 27... Qxa6 {[%clk 0:00:28.7]} 28.
hxg5 {[%clk 0:00:14.5]} 28... Qe2 {[%clk 0:00:28.2]} 29. Qc3 {[%clk 0:00:12.1]}
29... h4 {[%clk 0:00:24.5]} 30. Qd2 {[%clk 0:00:11.9]} 30... Qg4 {[%clk
0:00:25.1]} 31. Rb5 {[%clk 0:00:11.2]} 31... h3 {[%clk 0:00:24.9]} 32. f4 {[%clk
0:00:04.7]} 32... exf3 {[%clk 0:00:25.8]} 33. Qf2 {[%clk 0:00:03.8]} 33... hxg2
{[%clk 0:00:20.2]} 34. Qg3 {[%clk 0:00:03.4]} 34... Qe4 {[%clk 0:00:20.4]} 35.
Kf2 {[%clk 0:00:02.3]} 35... Rc8 {[%clk 0:00:16.1]} 36. Rc5 {[%clk 0:00:02.2]}
36... Rxc5 {[%clk 0:00:14.4]} 37. dxc5 {[%clk 0:00:03.1]} 37... Be5 {[%clk
0:00:12.1]} 38. c6 {[%clk 0:00:03.4]} 38... Bxg3+ {[%clk 0:00:12]} 39. Kxg3
{[%clk 0:00:04.3]} 39... g1=Q+ {[%clk 0:00:12.4]} 0-1

[Event "Early-Titled-Tuesday-Blitz-September-12-2023"]
[Site "Chess.com"]
[Date "2023.09.12"]
[Round "6"]
[White "malakismayil"]
[Black "supereagles1201"]
[Result "0-1"]
[WhiteElo "2507"]
[BlackElo "2394"]
[TimeControl "180+1"]
[EndTime "9:06:22 PDT"]
[Termination "supereagles1201 won on time"]

1. e4 {[%clk 0:03:00.9]} 1... c5 {[%clk 0:02:59.8]} 2. Nf3 {[%clk 0:03:01.1]}
2... g6 {[%clk 0:02:59.7]} 3. d4 {[%clk 0:03:00.2]} 3... cxd4 {[%clk 0:02:59.6]}
4. Nxd4 {[%clk 0:03:01.1]} 4... Nc6 {[%clk 0:02:59.3]} 5. Nxc6 {[%clk
0:03:00.9]} 5... bxc6 {[%clk 0:02:58.3]} 6. Nc3 {[%clk 0:03:01.8]} 6... Bg7
{[%clk 0:02:57.6]} 7. Bc4 {[%clk 0:02:59.6]} 7... d6 {[%clk 0:02:53.1]} 8. O-O
{[%clk 0:02:59.3]} 8... Nf6 {[%clk 0:02:52.9]} 9. Bg5 {[%clk 0:02:58.7]} 9...
O-O {[%clk 0:02:52.6]} 10. Qd2 {[%clk 0:02:57.6]} 10... Qc7 {[%clk 0:02:43.6]}
11. Rad1 {[%clk 0:02:56.2]} 11... a5 {[%clk 0:02:42.1]} 12. Rfe1 {[%clk
0:02:53.7]} 12... Ba6 {[%clk 0:02:41.3]} 13. Bxa6 {[%clk 0:02:50.4]} 13... Rxa6
{[%clk 0:02:42.2]} 14. b3 {[%clk 0:02:46.8]} 14... Raa8 {[%clk 0:02:35]} 15. h3
{[%clk 0:02:40.9]} 15... Rfd8 {[%clk 0:02:32]} 16. Qe3 {[%clk 0:02:18.1]} 16...
Ne8 {[%clk 0:02:15.1]} 17. Na4 {[%clk 0:02:13]} 17... Rab8 {[%clk 0:02:09.2]}
18. c4 {[%clk 0:02:12.3]} 18... c5 {[%clk 0:02:00.5]} 19. Nc3 {[%clk 0:02:08.2]}
19... Bd4 {[%clk 0:01:59.8]} 20. Rxd4 {[%clk 0:02:04.5]} 20... cxd4 {[%clk
0:02:00.7]} 21. Qxd4 {[%clk 0:02:05.4]} 21... f6 {[%clk 0:01:40.9]} 22. Be3
{[%clk 0:01:48.2]} 22... Qb7 {[%clk 0:01:23.5]} 23. Nd5 {[%clk 0:01:22.9]} 23...
Rd7 {[%clk 0:01:23.4]} 24. Bd2 {[%clk 0:01:16.7]} 24... a4 {[%clk 0:01:14.5]}
25. b4 {[%clk 0:01:16.3]} 25... Nc7 {[%clk 0:01:14.3]} 26. a3 {[%clk 0:00:37]}
26... Nxd5 {[%clk 0:00:57.3]} 27. exd5 {[%clk 0:00:37.9]} 27... Qb6 {[%clk
0:00:49.7]} 28. Qd3 {[%clk 0:00:25.1]} 28... Rc8 {[%clk 0:00:43.5]} 29. Be3
{[%clk 0:00:23.6]} 29... Qa6 {[%clk 0:00:34.4]} 30. Rc1 {[%clk 0:00:20.6]} 30...
Rdc7 {[%clk 0:00:33.6]} 31. b5 {[%clk 0:00:21]} 31... Qa5 {[%clk 0:00:28.4]} 32.
Qe4 {[%clk 0:00:18.5]} 32... Kg7 {[%clk 0:00:19.4]} 33. h4 {[%clk 0:00:18.5]}
33... Qa8 {[%clk 0:00:16.7]} 34. h5 {[%clk 0:00:16.7]} 34... Re8 {[%clk
0:00:16.3]} 35. Qf4 {[%clk 0:00:09.9]} 35... Qc8 {[%clk 0:00:15]} 36. Qh6+
{[%clk 0:00:07.6]} 36... Kg8 {[%clk 0:00:13.1]} 37. hxg6 {[%clk 0:00:07.9]}
37... hxg6 {[%clk 0:00:13.8]} 38. Qxg6+ {[%clk 0:00:08.5]} 38... Kh8 {[%clk
0:00:14.1]} 39. Qh5+ {[%clk 0:00:03.8]} 39... Kg8 {[%clk 0:00:13.8]} 40. Qg4+
{[%clk 0:00:04.5]} 40... Qxg4 {[%clk 0:00:11.4]} 0-1

[Event "Early-Titled-Tuesday-Blitz-September-12-2023"]
[Site "Chess.com"]
[Date "2023.09.12"]
[Round "6"]
[White "WaybackBoy"]
[Black "LangesNasenhaar"]
[Result "1-0"]
[WhiteElo "2695"]
[BlackElo "2455"]
[TimeControl "180+1"]
[EndTime "9:06:23 PDT"]
[Termination "WaybackBoy won on time"]

1. d4 {[%clk 0:02:59.7]} 1... g6 {[%clk 0:03:00.1]} 2. e4 {[%clk 0:02:59.6]}
2... Bg7 {[%clk 0:03:00.5]} 3. Nc3 {[%clk 0:03:00]} 3... d5 {[%clk 0:03:00.8]}
4. exd5 {[%clk 0:02:59]} 4... Nf6 {[%clk 0:02:59.8]} 5. Bc4 {[%clk 0:02:59.1]}
5... a6 {[%clk 0:02:58.6]} 6. a4 {[%clk 0:02:57.4]} 6... Nbd7 {[%clk 0:02:59]}
7. Qf3 {[%clk 0:02:56.8]} 7... O-O {[%clk 0:02:54.4]} 8. h3 {[%clk 0:02:56.7]}
8... Rb8 {[%clk 0:02:43.3]} 9. Nge2 {[%clk 0:02:55]} 9... b5 {[%clk 0:02:32.6]}
10. axb5 {[%clk 0:02:55.2]} 10... axb5 {[%clk 0:02:32.6]} 11. Bxb5 {[%clk
0:02:55.7]} 11... Nb6 {[%clk 0:02:30.3]} 12. Bc6 {[%clk 0:02:55.5]} 12... Bd7
{[%clk 0:02:21]} 13. O-O {[%clk 0:02:54.6]} 13... h6 {[%clk 0:02:01.6]} 14. Bf4
{[%clk 0:02:52.5]} 14... Nc8 {[%clk 0:01:55.6]} 15. b3 {[%clk 0:02:50.7]} 15...
Nd6 {[%clk 0:01:52.1]} 16. Be5 {[%clk 0:02:50.9]} 16... Bf5 {[%clk 0:01:42.2]}
17. Rfc1 {[%clk 0:02:43.9]} 17... h5 {[%clk 0:01:42.6]} 18. Ng3 {[%clk
0:02:35.8]} 18... Bc8 {[%clk 0:01:41.2]} 19. Nge4 {[%clk 0:02:34.8]} 19... Nfxe4
{[%clk 0:01:37]} 20. Nxe4 {[%clk 0:02:34.8]} 20... Bh6 {[%clk 0:01:30.8]} 21.
Re1 {[%clk 0:02:28.8]} 21... Bf5 {[%clk 0:01:23.9]} 22. Bxd6 {[%clk 0:01:58.4]}
22... cxd6 {[%clk 0:01:04.9]} 23. g4 {[%clk 0:01:52]} 23... hxg4 {[%clk
0:00:52.6]} 24. hxg4 {[%clk 0:01:52.9]} 24... Bc8 {[%clk 0:00:52.3]} 25. Ra7
{[%clk 0:01:30]} 25... Qb6 {[%clk 0:00:42.1]} 26. Rxe7 {[%clk 0:01:26.9]} 26...
Qxd4 {[%clk 0:00:42.3]} 27. g5 {[%clk 0:01:07.3]} 27... Bg7 {[%clk 0:00:41.7]}
28. Nf6+ {[%clk 0:01:04.7]} 28... Bxf6 {[%clk 0:00:38.3]} 29. gxf6 {[%clk
0:01:04.3]} 29... Bf5 {[%clk 0:00:26.4]} 30. c4 {[%clk 0:01:01.6]} 30... Qxf6
{[%clk 0:00:25.4]} 31. Qg3 {[%clk 0:00:56.5]} 31... Kg7 {[%clk 0:00:13.6]} 32.
Re8 {[%clk 0:00:49.5]} 32... Rbxe8 {[%clk 0:00:12.8]} 33. Rxe8 {[%clk
0:00:50.1]} 33... Rxe8 {[%clk 0:00:13]} 34. Bxe8 {[%clk 0:00:50]} 34... Be4
{[%clk 0:00:10.1]} 35. Kh2 {[%clk 0:00:38]} 35... Qa1 {[%clk 0:00:08.5]} 36. f3
{[%clk 0:00:34.1]} 36... Qc3 {[%clk 0:00:04.6]} 37. fxe4 {[%clk 0:00:31.1]}
37... Qd2+ {[%clk 0:00:02.8]} 38. Kh3 {[%clk 0:00:20.5]} 38... Qh6+ {[%clk
0:00:02.4]} 39. Kg2 {[%clk 0:00:21.2]} 39... Qd2+ {[%clk 0:00:02.1]} 40. Qf2
{[%clk 0:00:21.8]} 40... Qg5+ {[%clk 0:00:02]} 41. Kf3 {[%clk 0:00:20.4]} 41...
Qf6+ {[%clk 0:00:01.8]} 42. Ke2 {[%clk 0:00:13.6]} 42... Qb2+ {[%clk 0:00:01.3]}
43. Kf1 {[%clk 0:00:14.3]} 1-0

[Event "Early-Titled-Tuesday-Blitz-September-12-2023"]
[Site "Chess.com"]
[Date "2023.09.12"]
[Round "6"]
[White "fireheart92"]
[Black "sokidze"]
[Result "1-0"]
[WhiteElo "2962"]
[BlackElo "2781"]
[TimeControl "180+1"]
[EndTime "9:06:24 PDT"]
[Termination "fireheart92 won by resignation"]

1. b3 {[%clk 0:02:57.4]} 1... c5 {[%clk 0:02:58.4]} 2. Bb2 {[%clk 0:02:56.7]}
2... Nc6 {[%clk 0:02:58.9]} 3. c4 {[%clk 0:02:56]} 3... e5 {[%clk 0:02:58.7]} 4.
Nf3 {[%clk 0:02:52]} 4... d6 {[%clk 0:02:58.2]} 5. g3 {[%clk 0:02:51.2]} 5... g6
{[%clk 0:02:58.4]} 6. Bg2 {[%clk 0:02:50.7]} 6... Bg7 {[%clk 0:02:59]} 7. d3
{[%clk 0:02:46.8]} 7... Nge7 {[%clk 0:02:58.8]} 8. Nc3 {[%clk 0:02:46.6]} 8...
O-O {[%clk 0:02:58.6]} 9. O-O {[%clk 0:02:46.9]} 9... Rb8 {[%clk 0:02:56.5]} 10.
a3 {[%clk 0:02:44.3]} 10... a5 {[%clk 0:02:50.8]} 11. e3 {[%clk 0:02:39.5]}
11... h6 {[%clk 0:02:47.8]} 12. Nd2 {[%clk 0:02:32.6]} 12... Be6 {[%clk
0:02:47.9]} 13. Nd5 {[%clk 0:02:32.3]} 13... b5 {[%clk 0:02:48.5]} 14. Qc2
{[%clk 0:02:30.7]} 14... Kh8 {[%clk 0:02:46.7]} 15. f4 {[%clk 0:02:28.8]} 15...
f5 {[%clk 0:02:42]} 16. Rae1 {[%clk 0:02:26.2]} 16... Qd7 {[%clk 0:02:30.8]} 17.
Nxe7 {[%clk 0:02:04.3]} 17... Nxe7 {[%clk 0:02:29.5]} 18. fxe5 {[%clk
0:02:04.6]} 18... dxe5 {[%clk 0:02:23.7]} 19. Nf3 {[%clk 0:02:04.6]} 19... Qd6
{[%clk 0:01:55]} 20. Bc3 {[%clk 0:01:47.8]} 20... bxc4 {[%clk 0:01:47.8]} 21.
bxc4 {[%clk 0:01:48.7]} 21... Nc6 {[%clk 0:01:47.1]} 22. Nh4 {[%clk 0:01:46.3]}
22... Kh7 {[%clk 0:01:46.5]} 23. Rb1 {[%clk 0:01:40.5]} 23... Rfd8 {[%clk
0:01:29.4]} 24. Rxb8 {[%clk 0:01:36.7]} 24... Nxb8 {[%clk 0:01:14.1]} 25. Rd1
{[%clk 0:01:11.7]} 25... e4 {[%clk 0:00:51.6]} 26. Bxg7 {[%clk 0:01:00.2]} 26...
Kxg7 {[%clk 0:00:52.5]} 27. d4 {[%clk 0:00:58.3]} 27... g5 {[%clk 0:00:49.1]}
28. Qb2 {[%clk 0:00:33.9]} 28... Kh7 {[%clk 0:00:41.9]} 29. d5 {[%clk
0:00:32.2]} 29... gxh4 {[%clk 0:00:35.2]} 30. Qf6 {[%clk 0:00:31.7]} 30... Bc8
{[%clk 0:00:20.2]} 31. Qf7+ {[%clk 0:00:31.7]} 31... Kh8 {[%clk 0:00:19.6]} 32.
Rb1 {[%clk 0:00:30.7]} 32... hxg3 {[%clk 0:00:18.7]} 33. Rxb8 {[%clk 0:00:28.1]}
33... gxh2+ {[%clk 0:00:17]} 34. Kh1 {[%clk 0:00:28.5]} 34... Rf8 {[%clk
0:00:08]} 35. Qa7 {[%clk 0:00:21.8]} 35... Rg8 {[%clk 0:00:05.8]} 36. Rb6 {[%clk
0:00:20.9]} 36... Qf8 {[%clk 0:00:02.5]} 37. Qc7 {[%clk 0:00:21]} 37... Rg7
{[%clk 0:00:01.8]} 38. Rxh6+ {[%clk 0:00:18.7]} 38... Kg8 {[%clk 0:00:02.4]} 39.
Qxh2 {[%clk 0:00:19.2]} 39... Qe7 {[%clk 0:00:01.3]} 40. Rh8+ {[%clk 0:00:18.8]}
40... Kf7 {[%clk 0:00:01.8]} 41. Qh5+ {[%clk 0:00:18.7]} 41... Kf6 {[%clk
0:00:02]} 42. Rh6+ {[%clk 0:00:18.9]} 42... Ke5 {[%clk 0:00:02]} 43. Qh2+ {[%clk
0:00:19.4]} 1-0